bitfinex-derivatives/quotes_SOLF0:USTF0_20250905
["timestamp","ask_amount","ask_price","bid_price","bid_amount"]
[1757030893489,8.15,202.37,202.2,0.14]
[1757030893681,16.06322155,202.37,202.2,76.32]
[1757030893881,8.15,202.36,202.2,76.32]
[1757030894090,16.06322155,202.37,202.2,76.32]
[1757030894287,8.15,202.36,202.2,76.32]
[1757030894490,8.15,202.35,202.2,76.32]
[1757030894689,5.42322155,202.36,202.2,76.32]
[1757030894890,8.15,202.35,202.2,76.32]
[1757030895090,5.42322155,202.36,202.2,76.32]
[1757030895491,13.57322155,202.35,202.2,0.14]
[1757030895989,5.42322155,202.34,202.16,0.14]
[1757030896196,8.15,202.33,202.16,0.14]
[1757030896697,8.15,202.33,202.18,4.4509]
[1757030896896,8.15,202.33,202.19,0.14]
[1757030898596,0.03386386,202.28,202.19,0.14]
[1757030901194,7.74,202.27,202.19,0.14]
[1757030902996,0.03386386,202.28,202.14,318.3]
[1757030903394,5.42322155,202.34,202.15,0.13]
[1757030903593,7.74,202.33,202.15,0.13]
[1757030903999,13.16322155,202.33,202.15,0.13]
[1757030904991,0.03337157,202.26,202.15,0.13]
[1757030905195,7.74,202.25,202.15,0.13]
[1757030908401,7.74,202.25,202.15,129.93]
[1757030909894,0.03337157,202.26,202.16,129.68]
[1757030910100,0.03337157,202.26,202.17,0.13]
[1757030910300,7.74,202.28,202.17,0.13]
[1757030910499,0.0317363,202.24,202.17,0.13]
[1757030911806,0.0317363,202.24,202.19,0.13]
[1757030912005,0.0317363,202.24,202.18,129.52]
[1757030912306,0.0317363,202.24,202.19,0.13]
[1757030913201,0.0317363,202.24,202.2,0.13]
[1757030913401,0.0317363,202.24,202.19,0.5]
[1757030913707,0.0317363,202.24,202.2,0.13]
[1757030914301,0.0317363,202.24,202.18,133.971]
[1757030914606,0.0317363,202.24,202.16,0.13]
[1757030914908,0.0317363,202.24,202.2,0.13]
[1757030915708,7.74,202.23,202.2,129.28]
[1757030915907,7.74,202.23,202.19,129.2]
[1757030916104,7.74,202.23,202.15,5.31227891]
[1757030916299,7.74,202.23,202.2,0.13]
[1757030916506,7.74,202.23,202.16,0.13]
[1757030916708,7.74,202.23,202.17,129.18]
[1757030917100,7.74,202.23,202.16,0.13]
[1757030917500,7.74,202.23,202.17,129.08]
[1757030922421,0.0317363,202.24,202.18,0.13]
[1757030924013,0.0317363,202.24,202.19,0.13]
[1757030924714,0.0317363,202.24,202.18,4.4509]
[1757030925115,0.0317363,202.24,202.19,0.13]
[1757030925320,0.0317363,202.24,202.21,0.13]
[1757030926119,7.7717363,202.24,202.22,128.5]
[1757030927222,0.0317363,202.24,202.22,128.63]
[1757030927417,0.0317363,202.24,202.16,4.4512]
[1757030927617,0.0317363,202.24,202.17,128.51]
[1757030927819,0.0317363,202.24,202.18,128.3]
[1757030929121,0.0317363,202.24,202.19,0.16]
[1757030930122,0.0317363,202.24,202.19,4.4507]
[1757030930323,0.0317363,202.24,202.2,0.16]
[1757030930523,0.0317363,202.24,202.19,4.4507]
[1757030931222,0.0317363,202.24,202.2,0.16]
[1757030931424,0.0317363,202.24,202.21,4.4503]
[1757030933027,0.0317363,202.24,202.23,4.4499]
[1757030933327,7.42,202.32,202.24,0.16]
[1757030934329,7.42,202.32,202.26,0.03747236]
[1757030936317,7.42,202.32,202.26,0.19747236]
[1757030937530,7.42,202.38,202.26,0.19747236]
[1757030937825,7.42,202.38,202.26,0.16]
[1757030938025,7.42,202.38,202.3,0.03245793]
[1757030938520,7.42,202.38,202.3,0.19245793]
[1757030939227,7.42,202.38,202.3,0.03245793]
[1757030941027,7.42,202.38,202.31,29.98]
[1757030942726,7.42,202.38,202.31,0.16]
[1757030943123,7.42,202.38,202.32,40.0]
[1757030943733,7.42,202.38,202.31,0.16]
[1757030944031,7.42,202.38,202.32,30.6]
[1757030947630,28.20322155,202.51,202.32,30.6]
[1757030947934,7.42,202.5,202.33,0.16]
[1757030948533,7.42,202.5,202.39,0.03274305]
[1757030950729,7.42,202.5,202.41,0.16]
[1757030951333,7.42,202.5,202.43,0.03766967]
[1757030951537,7.42,202.5,202.43,0.19766967]
[1757030952339,7.42,202.59,202.43,0.19766967]
[1757030952731,7.42,202.59,202.43,0.16]
[1757030952932,7.42,202.59,202.49,0.03599059]
[1757030960835,7.42,202.59,202.4,0.12]
[1757030961041,7.76,202.55,202.4,0.12]
[1757030962042,0.03629768,202.5,202.4,0.12]
[1757030962242,7.76,202.49,202.4,0.12]
[1757030965848,0.03629768,202.5,202.4,0.12]
[1757030967548,0.03629768,202.5,202.42,0.19]
[1757030968950,0.03629768,202.5,202.45,4.445]
[1757030969149,0.03629768,202.5,202.46,0.19]
[1757030969446,0.03629768,202.5,202.47,126.5]
[1757030969641,0.03629768,202.5,202.48,0.19]
[1757030969842,0.03629768,202.5,202.47,126.5]
[1757030970051,7.76,202.57,202.48,0.19]
[1757030971250,7.76,202.57,202.51,0.19]
[1757030972555,55.28,202.71,202.51,0.19]
[1757030973158,55.28,202.71,202.59,0.03278172]
[1757030973855,56.13922744,202.71,202.59,0.03278172]
[1757030977261,7.76,202.71,202.59,0.03278172]
[1757030977557,7.76,202.71,202.6,0.19]
[1757030978253,7.76,202.71,202.63,0.03386171]
[1757030982664,7.76,202.71,202.53,0.19]
[1757030982864,7.76,202.71,202.53,0.35]
[1757030983163,7.76,202.71,202.54,0.22]
[1757030990167,7.76,202.71,202.55,0.19]
[1757030993369,7.76,202.71,202.56,4.4427]
[1757030993571,7.76,202.71,202.57,0.19]
[1757030996269,5.42322155,202.76,202.57,25.59]
[1757030996469,8.08,202.75,202.57,25.59]
[1757030996665,5.42322155,202.75,202.57,25.59]
[1757030996872,8.08,202.74,202.57,25.59]
[1757030997274,8.08,202.74,202.57,0.19]
[1757030997572,13.50322155,202.74,202.57,0.19]
[1757031000378,8.08,202.74,202.57,0.19]
[1757031002582,13.50322155,202.75,202.57,0.19]
[1757031006280,8.08,202.73,202.57,0.19]
[1757031007188,0.03666906,202.67,202.57,0.19]
[1757031007486,8.08,202.66,202.57,0.19]
[1757031009091,0.03666906,202.67,202.58,0.19]
[1757031009286,0.03666906,202.67,202.6,0.19]
[1757031010392,5.42322155,202.8,202.6,0.19]
[1757031010693,8.08,202.79,202.6,0.19]
[1757031010993,8.08,202.79,202.62,0.19]
[1757031011289,5.42322155,202.8,202.64,0.19]
[1757031011492,8.08,202.79,202.64,0.19]
[1757031011693,8.08,202.79,202.7,0.03208764]
[1757031012489,13.50322155,202.79,202.7,0.03208764]
[1757031012895,8.08,202.77,202.7,0.03208764]
[1757031015188,5.42322155,202.76,202.7,0.03208764]
[1757031015387,13.50322155,202.75,202.7,0.03208764]
[1757031015689,13.53946138,202.75,202.56,317.92]
[1757031015892,13.50322155,202.72,202.57,0.22]
[1757031016086,8.08,202.7,202.57,0.22]
[1757031016286,13.50322155,202.7,202.57,0.22]
[1757031016792,0.03650164,202.66,202.57,0.22]
[1757031016989,8.08,202.65,202.57,0.22]
[1757031019590,7.97,202.65,202.56,317.92]
[1757031019796,7.97,202.65,202.59,0.03446513]
[1757031020193,13.39322155,202.65,202.59,0.03446513]
[1757031020395,7.97,202.63,202.59,0.03446513]
[1757031020692,7.97,202.61,202.47,15.32]
[1757031020893,7.97,202.61,202.46,0.29]
[1757031021791,0.03321897,202.56,202.46,0.29]
[1757031021992,7.97,202.55,202.46,0.29]
[1757031024598,7.97,202.55,202.45,125.7]
[1757031024795,0.03321897,202.56,202.45,125.7]
[1757031024996,7.97,202.55,202.45,125.7]
[1757031025197,0.03321897,202.56,202.45,125.7]
[1757031025396,7.97,202.55,202.45,125.7]
[1757031026102,0.03321897,202.56,202.45,125.7]
[1757031026302,7.97,202.55,202.45,125.7]
[1757031026501,0.03321897,202.56,202.45,125.7]
[1757031027002,7.97,202.55,202.45,125.7]
[1757031027504,0.03321897,202.56,202.42,318.19]
[1757031027698,7.97,202.55,202.43,125.58]
[1757031028002,0.03140451,202.51,202.43,125.58]
[1757031028201,0.03140451,202.51,202.44,0.29]
[1757031034002,0.03140451,202.51,202.45,0.29]
[1757031035208,0.03140451,202.51,202.47,0.29]
[1757031035400,0.03140451,202.51,202.46,4.4449]
[1757031035401,0.03140451,202.51,202.48,125.24]
[1757031035603,0.03140451,202.51,202.5,0.29]
[1757031037309,7.97,202.59,202.51,0.29]
[1757031038011,7.97,202.69,202.51,0.29]
[1757031038602,0.03118484,202.62,202.51,0.29]
[1757031039712,0.03118484,202.62,202.52,4.4436]
[1757031039913,0.03118484,202.62,202.53,0.29]
[1757031040115,0.03118484,202.62,202.55,0.29]
[1757031040710,0.03118484,202.62,202.56,125.06]
[1757031041015,8.00118484,202.62,202.56,125.06]
[1757031041614,8.00118484,202.62,202.56,125.35]
[1757031042512,0.03118484,202.62,202.57,0.29]
[1757031042815,0.03118484,202.62,202.58,0.29]
[1757031043010,0.03118484,202.62,202.57,4.4425]
[1757031043311,0.03118484,202.62,202.58,0.29]
[1757031043517,0.03118484,202.62,202.57,4.4425]
[1757031043518,0.03118484,202.62,202.59,0.29]
[1757031043706,0.03118484,202.62,202.58,0.29]
[1757031044108,8.00118484,202.62,202.59,124.9]
[1757031044308,8.00118484,202.62,202.59,124.92]
[1757031045212,8.00118484,202.62,202.58,0.29]
[1757031045417,8.00118484,202.62,202.58,125.17]
[1757031045614,7.97,202.62,202.58,0.29]
[1757031045916,0.03323698,202.62,202.57,124.84]
[1757031046118,0.03323698,202.62,202.58,0.29]
[1757031046314,0.03323698,202.62,202.57,124.84]
[1757031046619,0.03323698,202.62,202.58,0.29]
[1757031046819,7.97,202.75,202.58,0.29]
[1757031047916,7.97,202.75,202.64,0.03260705]
[1757031049820,15.70322155,202.77,202.56,0.33]
[1757031049821,7.63,202.71,202.56,0.33]
[1757031051019,7.63,202.65,202.56,0.33]
[1757031051321,0.03252364,202.66,202.56,0.33]
[1757031051716,0.03252364,202.66,202.58,4.4423]
[1757031051921,0.03252364,202.66,202.59,0.31]
[1757031059324,0.03252364,202.66,202.61,0.31]
[1757031059726,0.03252364,202.66,202.63,0.31]
[1757031059928,7.63,202.72,202.64,0.31]
[1757031060127,7.63,202.72,202.64,63.43]
[1757031060629,7.63,202.79,202.65,0.31]
[1757031061026,7.63,202.79,202.7,0.03609556]
[1757031061830,7.63,202.79,202.71,0.31]
[1757031062028,0.03419562,202.77,202.71,0.31]
[1757031063734,0.03419562,202.77,202.76,1.71240105]
[1757031064131,7.66419562,202.77,202.75,1.71240105]
[1757031065241,0.03419562,202.77,202.75,1.71240105]
[1757031065543,0.03419562,202.77,202.76,0.31]
[1757031069247,0.03419562,202.77,202.74,0.03675734]
[1757031069248,7.63,202.76,202.74,0.03675734]
[1757031069445,7.63,202.76,202.75,1.71240105]
[1757031070944,0.03419562,202.77,202.74,0.03675734]
[1757031071150,7.63,202.76,202.74,0.03675734]
[1757031072346,0.03419562,202.77,202.74,0.03675734]
[1757031072546,7.63,202.76,202.74,0.03675734]
[1757031073046,0.03419562,202.77,202.74,0.03675734]
[1757031073449,7.63,202.76,202.74,0.03675734]
[1757031073648,0.03419562,202.77,202.74,0.03675734]
[1757031074045,7.63,202.76,202.74,0.03675734]
[1757031074352,0.03419562,202.77,202.74,0.03675734]
[1757031075046,7.63,202.76,202.74,0.03675734]
[1757031075650,1.74659667,202.77,202.74,0.03675734]
[1757031075849,7.63,202.76,202.74,0.03675734]
[1757031076547,1.74659667,202.77,202.74,0.03675734]
[1757031076746,7.63,202.76,202.74,0.03675734]
[1757031077252,1.74659667,202.77,202.74,0.03675734]
[1757031077753,7.66,202.76,202.74,0.03675734]
[1757031078249,7.66,202.76,202.67,317.78]
[1757031078454,1.74659667,202.77,202.63,1.71240105]
[1757031078455,7.66,202.71,202.63,1.71240105]
[1757031078645,7.66,202.69,202.62,125.69240105]
[1757031079647,7.66,202.67,202.6,0.32]
[1757031079850,1.74470642,202.68,202.63,0.03315853]
[1757031081147,7.66,202.67,202.63,0.03315853]
[1757031081358,1.74470642,202.68,202.63,0.03315853]
[1757031081553,7.66,202.67,202.63,0.03315853]
[1757031081751,1.74470642,202.68,202.63,0.03315853]
[1757031081948,7.66,202.67,202.63,0.03315853]
[1757031082656,9.37240105,202.64,202.63,0.03315853]
[1757031083054,9.37240105,202.64,202.55,30.1]
[1757031083254,9.37240105,202.64,202.56,1.71240105]
[1757031083255,7.66,202.63,202.56,1.71240105]
[1757031084162,1.71240105,202.6,202.49,0.36]
[1757031084357,1.71240105,202.56,202.44,0.36]
[1757031084566,7.66,202.55,202.48,1.71240105]
[1757031084859,0.03184865,202.52,202.48,1.71240105]
[1757031085160,7.66,202.51,202.48,1.71240105]
[1757031085460,7.66,202.51,202.44,0.36]
[1757031085661,7.66,202.51,202.48,1.71240105]
[1757031086960,7.66,202.51,202.44,126.52]
[1757031087162,7.66,202.51,202.48,1.71240105]
[1757031089955,0.03184865,202.52,202.47,1.71240105]
[1757031089956,7.69184865,202.52,202.47,1.71240105]
[1757031090155,7.66,202.51,202.47,1.71240105]
[1757031090362,0.03184865,202.52,202.47,1.71240105]
[1757031090558,7.66,202.51,202.44,0.36]
[1757031090759,7.66,202.51,202.44,1.71240105]
[1757031091259,1.71240105,202.5,202.4,0.36]
[1757031091458,1.71240105,202.5,202.43,1.71240105]
[1757031091459,7.66,202.49,202.43,1.71240105]
[1757031091859,7.66,202.47,202.4,0.36]
[1757031092160,7.66,202.47,202.41,1.71240105]
[1757031092362,0.03674485,202.46,202.41,1.71240105]
[1757031092554,7.66,202.45,202.41,1.71240105]
[1757031093162,0.03674485,202.46,202.37,443.74]
[1757031093163,0.03674485,202.46,202.44,1.71240105]
[1757031093962,0.03674485,202.46,202.44,2.07240105]
[1757031095260,0.03674485,202.46,202.44,1.71240105]
[1757031095462,7.66,202.45,202.44,1.71240105]
[1757031095860,0.03674485,202.46,202.44,1.71240105]
[1757031096265,0.03674485,202.46,202.44,2.07240105]
[1757031096466,0.03674485,202.46,202.44,1.71240105]
[1757031097267,0.03674485,202.46,202.39,0.36]
[1757031097268,7.66,202.45,202.42,1.71240105]
[1757031097465,7.66,202.45,202.39,126.08]
[1757031097764,0.03674485,202.46,202.41,1.71240105]
[1757031098068,7.66,202.45,202.41,1.71240105]
[1757031099157,0.03674485,202.46,202.43,1.71240105]
[1757031099363,0.03674485,202.46,202.45,1.71240105]
[1757031099864,0.03674485,202.46,202.45,2.07240105]
[1757031103165,0.03674485,202.46,202.45,125.86]
[1757031103357,0.03674485,202.46,202.45,127.57240105]
[1757031105271,7.69674485,202.46,202.42,0.36]
[1757031105567,7.69674485,202.46,202.45,1.71240105]
[1757031107269,7.69674485,202.46,202.43,1.71240105]
[1757031107665,7.69674485,202.46,202.38,0.36]
[1757031107870,7.85,202.45,202.42,1.71240105]
[1757031108768,0.03674485,202.46,202.42,2.08240105]
[1757031109068,7.88674485,202.46,202.42,2.08240105]
[1757031109766,0.03674485,202.46,202.43,0.37]
[1757031110671,7.88674485,202.46,202.43,2.08240105]
[1757031111474,7.88674485,202.46,202.43,0.37]
[1757031111771,0.03674485,202.46,202.41,2.68434797]
[1757031112071,0.03674485,202.46,202.42,0.37]
[1757031112764,0.03674485,202.46,202.41,2.68434797]
[1757031112970,0.03674485,202.46,202.42,0.37]
[1757031113167,0.03674485,202.46,202.4,0.37]
[1757031113367,0.03674485,202.46,202.44,0.37]
[1757031114672,0.03674485,202.46,202.44,125.43]
[1757031115568,0.03674485,202.46,202.45,0.37]
[1757031116665,7.85,202.54,202.44,125.06]
[1757031116873,7.85,202.54,202.47,3.05434797]
[1757031117874,0.03273526,202.53,202.47,3.05434797]
[1757031120776,0.03273526,202.53,202.51,0.37]
[1757031120972,0.03273526,202.53,202.52,0.37]
[1757031121876,0.03273526,202.53,202.51,0.37]
[1757031122878,7.88273526,202.53,202.5,2.68434797]
[1757031123074,7.85,202.52,202.5,2.68434797]
[1757031123270,0.03273526,202.53,202.5,2.68434797]
[1757031123470,0.03273526,202.53,202.5,3.05434797]
[1757031125178,0.03273526,202.53,202.5,2.68434797]
[1757031125377,0.03273526,202.53,202.51,0.37]
[1757031125679,7.88273526,202.53,202.5,0.37]
[1757031125874,7.85,202.52,202.48,3.05434797]
[1757031126477,7.85,202.52,202.49,0.37]
[1757031126977,0.03273526,202.53,202.49,0.37]
[1757031127177,7.88273526,202.53,202.49,0.37]
[1757031127379,0.03273526,202.53,202.43,0.37]
[1757031127579,7.85,202.52,202.43,0.37]
[1757031127772,7.85,202.56,202.43,109.59434797]
[1757031127976,7.88595439,202.5,202.43,109.59434797]
[1757031130688,0.03595439,202.5,202.43,106.54]
[1757031130885,0.03595439,202.5,202.45,2.68434797]
[1757031131388,0.03595439,202.5,202.46,0.37]
[1757031132283,0.03595439,202.5,202.45,2.68434797]
[1757031132588,0.03595439,202.5,202.46,0.37]
[1757031132792,0.03595439,202.5,202.49,0.37]
[1757031135084,7.85,202.58,202.49,0.37]
[1757031135289,7.85,202.58,202.52,0.37]
[1757031135689,7.85,202.58,202.52,3.05434797]
[1757031136392,7.85,202.63,202.53,0.0337299]
[1757031139693,8.06,202.57,202.53,0.0337299]
[1757031140196,8.06,202.57,202.53,0.03372655]
[1757031144102,8.06,202.54,202.45,0.36]
[1757031145303,0.03439186,202.52,202.45,0.36]
[1757031146399,0.03439186,202.52,202.47,0.39]
[1757031147405,8.09439186,202.52,202.48,0.39]
[1757031148201,8.09439186,202.52,202.46,2.68434797]
[1757031148202,8.09439186,202.52,202.46,3.07434797]
[1757031150498,0.03439186,202.52,202.46,2.68434797]
[1757031150703,0.03439186,202.52,202.47,0.39]
[1757031150997,0.03439186,202.52,202.48,0.39]
[1757031151205,0.03439186,202.52,202.47,0.39]
[1757031151903,8.06,202.51,202.47,0.39]
[1757031152208,0.03439186,202.52,202.47,0.39]
[1757031152797,0.03439186,202.52,202.46,2.68434797]
[1757031153001,8.09439186,202.52,202.46,2.68434797]
[1757031153309,0.03439186,202.52,202.46,2.68434797]
[1757031153602,0.03439186,202.52,202.49,2.68434797]
[1757031153803,0.03439186,202.52,202.51,0.39]
[1757031158509,0.03439186,202.52,202.51,0.89]
[1757031158910,0.03439186,202.52,202.51,0.39]
[1757031159513,0.03439186,202.52,202.51,124.63]
[1757031159706,0.03439186,202.52,202.51,0.39]
[1757031162008,8.06,202.58,202.51,0.39]
[1757031162211,8.06,202.64,202.54,0.39]
[1757031163312,8.06,202.64,202.57,0.03681019]
[1757031164909,8.06,202.61,202.57,0.03681019]
[1757031165310,8.06,202.61,202.52,3.76]
[1757031165514,8.06,202.61,202.57,0.03164746]
[1757031165814,2.68434797,202.62,202.57,0.03164746]
[1757031166214,8.06,202.61,202.57,0.03164746]
[1757031166414,2.68434797,202.62,202.57,0.03164746]
[1757031166815,8.06,202.61,202.57,0.03164746]
[1757031167011,2.68434797,202.62,202.57,0.03164746]
[1757031167216,8.06,202.61,202.57,0.03164746]
[1757031168816,7.98,202.61,202.57,0.03164746]
[1757031169013,2.68434797,202.62,202.57,0.03164746]
[1757031169815,7.98,202.61,202.57,0.03164746]
[1757031170013,8.09123893,202.65,202.57,0.03164746]
[1757031170317,7.98,202.64,202.57,0.03164746]
[1757031173419,1.71605291,202.62,202.57,0.03164746]
[1757031173715,7.98,202.61,202.57,0.03164746]
[1757031174022,1.71605291,202.62,202.57,0.03164746]
[1757031174416,7.98,202.61,202.57,0.03164746]
[1757031174617,1.71605291,202.62,202.57,0.03164746]
[1757031174812,7.98,202.61,202.57,0.03164746]
[1757031175517,1.71605291,202.62,202.57,0.03164746]
[1757031176724,7.98,202.61,202.57,0.03164746]
[1757031176918,1.71605291,202.62,202.57,0.03164746]
[1757031177124,7.98,202.61,202.57,0.03164746]
[1757031177526,1.71605291,202.62,202.57,0.03164746]
[1757031177725,7.98,202.61,202.57,0.03164746]
[1757031177921,1.71605291,202.62,202.57,0.03164746]
[1757031178627,7.98,202.59,202.57,0.03164746]
[1757031179627,1.71605291,202.6,202.57,0.03164746]
[1757031180025,7.98,202.59,202.57,0.03164746]
[1757031180324,1.71605291,202.6,202.57,0.03164746]
[1757031180526,7.98,202.59,202.57,0.03164746]
[1757031181227,1.71605291,202.62,202.57,0.03164746]
[1757031181524,7.98,202.61,202.57,0.03164746]
[1757031181925,1.71605291,202.62,202.57,0.03164746]
[1757031182127,7.98,202.61,202.57,0.03164746]
[1757031182320,1.71605291,202.62,202.57,0.03164746]
[1757031182729,7.98,202.63,202.57,0.03164746]
[1757031182919,7.98,202.6,202.57,0.03164746]
[1757031183124,1.71605291,202.61,202.57,0.03164746]
[1757031183633,7.98,202.6,202.57,0.03164746]
[1757031183821,1.71605291,202.61,202.57,0.03164746]
[1757031184228,7.98,202.6,202.57,0.03164746]
[1757031184424,1.71605291,202.61,202.57,0.03164746]
[1757031184827,7.98,202.6,202.57,0.03164746]
[1757031185429,1.71605291,202.61,202.57,0.03164746]
[1757031185835,7.98,202.6,202.57,0.03164746]
[1757031186228,1.71605291,202.61,202.57,0.03164746]
[1757031186424,7.98,202.6,202.57,0.03164746]
[1757031186830,1.71605291,202.61,202.57,0.03164746]
[1757031187339,7.98,202.6,202.57,0.03164746]
[1757031188231,1.71605291,202.61,202.57,0.03164746]
[1757031188531,1.71605291,202.62,202.57,0.03164746]
[1757031189132,46.42,202.69,202.57,0.03164746]
[1757031189133,9.69605291,202.63,202.57,0.03164746]
[1757031189535,7.98,202.61,202.58,2.10605291]
[1757031189728,0.03709811,202.62,202.58,1.71605291]
[1757031189930,0.03709811,202.62,202.6,2.10605291]
[1757031190130,8.01709811,202.62,202.6,1.71605291]
[1757031190738,0.03709811,202.62,202.6,1.71605291]
[1757031190938,0.03709811,202.62,202.61,0.39]
[1757031193433,0.03709811,202.62,202.61,0.89]
[1757031193934,7.98,202.69,202.62,0.39]
[1757031194136,7.98,202.69,202.66,1.71605291]
[1757031194332,7.98,202.7,202.64,2.10605291]
[1757031194536,7.98,202.7,202.64,1.71605291]
[1757031195135,7.98,202.7,202.65,0.03753154]
[1757031195537,1.71605291,202.69,202.65,0.03753154]
[1757031195932,7.98,202.68,202.65,0.03753154]
[1757031196342,1.71605291,202.69,202.65,0.03753154]
[1757031196541,7.98,202.68,202.65,0.03753154]
[1757031196840,1.71605291,202.69,202.65,0.03753154]
[1757031197032,7.98,202.68,202.65,0.03753154]
[1757031197640,1.71605291,202.69,202.65,0.03753154]
[1757031197940,1.71605291,202.7,202.65,0.03753154]
[1757031198439,7.94,202.69,202.65,0.03753154]
[1757031198640,7.94,202.7,202.65,0.03753154]
[1757031200041,1.71605291,202.71,202.65,0.03753154]
[1757031200436,7.94,202.72,202.66,1.71605291]
[1757031200941,7.94,202.72,202.65,0.03753154]
[1757031201143,7.94,202.72,202.66,1.71605291]
[1757031201838,7.94,202.74,202.68,1.71605291]
[1757031205540,7.94,202.74,202.65,0.41753154]
[1757031205740,7.94,202.74,202.67,1.71605291]
[1757031206446,7.94,202.72,202.67,1.71605291]
[1757031206946,7.94,202.72,202.66,1.71605291]
[1757031207138,1.71605291,202.73,202.67,0.03534725]
[1757031207338,7.94,202.72,202.67,0.03534725]
[1757031207543,7.94,202.73,202.67,0.03534725]
[1757031208743,1.71605291,202.74,202.68,1.71605291]
[1757031208744,9.65605291,202.74,202.68,1.71605291]
[1757031208940,7.94,202.74,202.68,1.71605291]
[1757031212954,7.94,202.79,202.72,1.71605291]
[1757031213149,9.65605291,202.79,202.68,0.38]
[1757031213350,9.65605291,202.79,202.72,1.71605291]
[1757031213544,9.65605291,202.79,202.71,0.03491163]
[1757031213752,7.94,202.76,202.71,0.03491163]
[1757031214142,7.94,202.76,202.69,1.71605291]
[1757031214344,7.94,202.76,202.71,0.03508706]
[1757031215355,1.71605291,202.77,202.71,0.03508706]
[1757031215553,7.94,202.76,202.71,0.03508706]
[1757031217050,7.94,202.8,202.71,0.40508706]
[1757031217254,5.40689096,202.82,202.75,1.71605291]
[1757031217453,5.40689096,202.82,202.71,0.40508706]
[1757031217454,7.94,202.82,202.77,1.71605291]
[1757031217655,7.94,202.84,202.77,1.71605291]
[1757031217853,1.71605291,202.83,202.77,0.03633419]
[1757031218044,1.71605291,202.81,202.77,0.03633419]
[1757031218956,7.94,202.8,202.77,0.03633419]
[1757031219154,9.65605291,202.8,202.77,0.03633419]
[1757031219454,7.94,202.8,202.77,0.03633419]
[1757031219755,7.94,202.78,202.77,0.03633419]
[1757031219951,7.94,202.78,202.59,4.15017362]
[1757031220156,5.40689096,202.84,202.67,1.71605291]
[1757031220157,7.94,202.73,202.67,1.71605291]
[1757031221255,5.40689096,202.81,202.68,0.03337106]
[1757031221256,7.94,202.78,202.68,0.03337106]
[1757031221452,1.71605291,202.72,202.68,0.03337106]
[1757031221656,7.94,202.71,202.65,1.71605291]
[1757031221856,1.71605291,202.72,202.68,0.0342581]
[1757031222950,7.94,202.77,202.68,0.0342581]
[1757031223150,1.71605291,202.72,202.68,0.0342581]
[1757031223556,7.94,202.71,202.68,0.0342581]
[1757031223956,1.71605291,202.72,202.68,0.0342581]
[1757031224355,7.94,202.71,202.68,0.0342581]
[1757031224746,1.71605291,202.72,202.68,0.0342581]
[1757031224950,7.94,202.71,202.68,0.0342581]
[1757031225253,1.71605291,202.72,202.68,0.0342581]
[1757031225458,7.94,202.71,202.68,0.0342581]
[1757031225958,1.71605291,202.72,202.68,0.0342581]
[1757031226556,7.94,202.71,202.68,0.0342581]
[1757031226959,1.71605291,202.72,202.68,0.0342581]
[1757031227560,7.94,202.71,202.68,0.0342581]
[1757031227759,7.52,202.71,202.68,0.0342581]
[1757031228154,1.71605291,202.72,202.68,0.0342581]
[1757031228356,7.52,202.71,202.68,0.0342581]
[1757031228560,7.52,202.71,202.68,0.4442581]
[1757031229361,7.52,202.73,202.68,0.0342581]
[1757031229562,1.71605291,202.74,202.68,0.0342581]
[1757031230353,7.52,202.73,202.68,0.0342581]
[1757031230550,1.71605291,202.74,202.68,0.0342581]
[1757031230755,7.52,202.73,202.68,0.0342581]
[1757031231060,5.40689096,202.78,202.68,0.0342581]